[Event "*** SCC Grand Prix: Titled Tuesday Blitz"]
[Site "Chess.com"]
[Date "2020.08.11"]
[Round "5"]
[White "Msb2"]
[Black "OparinGrigoriy"]
[Result "1/2-1/2"]
[WhiteElo "2801"]
[BlackElo "2937"]
[TimeControl "180+1"]
[EndTime "10:56:37 PDT"]
[Termination "Game drawn by repetition"]

1. d4 {[%clk 0:03:00.9]} 1... d5 {[%clk 0:03:00.7]} 2. c4 {[%clk 0:03:00.9]}
2... e6 {[%clk 0:03:01.4]} 3. Nc3 {[%clk 0:03:01.4]} 3... Be7 {[%clk 0:03:02]}
4. Nf3 {[%clk 0:02:57.5]} 4... Nf6 {[%clk 0:03:01.6]} 5. h3 {[%clk 0:02:57.8]}
5... b6 {[%clk 0:02:57.2]} 6. cxd5 {[%clk 0:02:57.5]} 6... Nxd5 {[%clk
0:02:54.6]} 7. e4 {[%clk 0:02:57.1]} 7... Nxc3 {[%clk 0:02:54]} 8. bxc3 {[%clk
0:02:58]} 8... Bb7 {[%clk 0:02:53.8]} 9. Bd3 {[%clk 0:02:58.1]} 9... c5 {[%clk
0:02:52.8]} 10. O-O {[%clk 0:02:58.2]} 10... O-O {[%clk 0:02:50]} 11. Qe2 {[%clk
0:02:50.1]} 11... Qc7 {[%clk 0:02:47.9]} 12. Bb2 {[%clk 0:02:49.5]} 12... Nd7
{[%clk 0:02:46.4]} 13. Rad1 {[%clk 0:02:48.6]} 13... Rfe8 {[%clk 0:02:46.3]} 14.
Rfe1 {[%clk 0:02:42.5]} 14... Rac8 {[%clk 0:02:46.9]} 15. Qe3 {[%clk 0:02:33]}
15... Nf6 {[%clk 0:02:36.5]} 16. Ne5 {[%clk 0:02:30.5]} 16... Bd6 {[%clk
0:02:31]} 17. f4 {[%clk 0:02:30.3]} 17... Red8 {[%clk 0:02:22.9]} 18. Rf1 {[%clk
0:02:18.2]} 18... Qe7 {[%clk 0:02:15.3]} 19. Kh2 {[%clk 0:02:09.8]} 19... cxd4
{[%clk 0:02:09.8]} 20. cxd4 {[%clk 0:02:10.7]} 20... Ba3 {[%clk 0:02:10.5]} 21.
Ba1 {[%clk 0:02:09.6]} 21... Bb4 {[%clk 0:02:04.4]} 22. f5 {[%clk 0:02:04.5]}
22... Bc3 {[%clk 0:01:54.5]} 23. fxe6 {[%clk 0:01:22.2]} 23... Qxe6 {[%clk
0:01:55.4]} 24. Rxf6 {[%clk 0:00:46.7]} 24... Qxf6 {[%clk 0:01:42.5]} 25. Rf1
{[%clk 0:00:44.9]} 25... Bxa1 {[%clk 0:01:19.1]} 26. Rxf6 {[%clk 0:00:40.6]}
26... Bxd4 {[%clk 0:01:19.6]} 27. Qg3 {[%clk 0:00:24.8]} 27... Bxe5 {[%clk
0:01:19.6]} 28. Qxe5 {[%clk 0:00:25.7]} 28... gxf6 {[%clk 0:01:20.3]} 29. Qg3+
{[%clk 0:00:25.8]} 29... Kf8 {[%clk 0:01:18.7]} 30. Qe3 {[%clk 0:00:20.5]} 30...
Rc5 {[%clk 0:01:16.6]} 31. Be2 {[%clk 0:00:20]} 31... Kg7 {[%clk 0:00:59.5]} 32.
h4 {[%clk 0:00:18]} 32... h5 {[%clk 0:00:43.5]} 33. Qg3+ {[%clk 0:00:17.9]}
33... Kf8 {[%clk 0:00:43.8]} 34. Qf4 {[%clk 0:00:17.9]} 34... Ke7 {[%clk
0:00:42.2]} 35. Bf3 {[%clk 0:00:17.1]} 35... Re5 {[%clk 0:00:32.7]} 36. Qe3
{[%clk 0:00:17.3]} 36... Rd6 {[%clk 0:00:28.3]} 37. Qa3 {[%clk 0:00:17]} 37...
a5 {[%clk 0:00:28.5]} 38. Qc3 {[%clk 0:00:14.7]} 38... Bc6 {[%clk 0:00:28.3]}
39. Qb2 {[%clk 0:00:14.3]} 39... b5 {[%clk 0:00:25.9]} 40. a3 {[%clk 0:00:13.5]}
40... Bd7 {[%clk 0:00:23.7]} 41. Qc3 {[%clk 0:00:12.8]} 41... Bc6 {[%clk
0:00:20.5]} 42. Qxa5 {[%clk 0:00:12]} 42... Bxe4 {[%clk 0:00:19.8]} 43. Bxe4
{[%clk 0:00:12.1]} 43... Rxe4 {[%clk 0:00:20.7]} 44. Qc7+ {[%clk 0:00:12.4]}
44... Ke6 {[%clk 0:00:17.6]} 45. Qc8+ {[%clk 0:00:12.7]} 45... Ke5 {[%clk
0:00:16.5]} 46. Qe8+ {[%clk 0:00:12.7]} 46... Kd4 {[%clk 0:00:14.5]} 47. Qxb5
{[%clk 0:00:12.5]} 47... Rxh4+ {[%clk 0:00:14.1]} 48. Kg1 {[%clk 0:00:12.1]}
48... Re4 {[%clk 0:00:13.5]} 49. Qxh5 {[%clk 0:00:10.9]} 49... Re5 {[%clk
0:00:09.8]} 50. Qf3 {[%clk 0:00:09]} 50... Rde6 {[%clk 0:00:07.2]} 51. Qf4+
{[%clk 0:00:08.6]} 51... Kc5 {[%clk 0:00:07.3]} 52. Qb4+ {[%clk 0:00:08.7]}
52... Kc6 {[%clk 0:00:07.5]} 53. a4 {[%clk 0:00:09.6]} 53... Rc5 {[%clk
0:00:06.7]} 54. a5 {[%clk 0:00:08.2]} 54... Ree5 {[%clk 0:00:04.6]} 55. a6
{[%clk 0:00:08.6]} 55... Ra5 {[%clk 0:00:05.2]} 56. Qb7+ {[%clk 0:00:07.8]}
56... Kd6 {[%clk 0:00:05.6]} 57. a7 {[%clk 0:00:08.7]} 57... Ra1+ {[%clk
0:00:04.4]} 58. Kh2 {[%clk 0:00:08.4]} 58... Rea5 {[%clk 0:00:05.3]} 59. Qb8+
{[%clk 0:00:07.8]} 59... Ke6 {[%clk 0:00:05.6]} 60. Qe8+ {[%clk 0:00:07.6]}
60... Kf5 {[%clk 0:00:05.9]} 61. Qc8+ {[%clk 0:00:04.7]} 61... Kg5 {[%clk
0:00:05.8]} 62. Qg8+ {[%clk 0:00:04.9]} 62... Kf5 {[%clk 0:00:06.1]} 63. Qc8+
{[%clk 0:00:05]} 63... Kg6 {[%clk 0:00:06.5]} 64. Qg8+ {[%clk 0:00:05.2]} 64...
Kh6 {[%clk 0:00:06.1]} 65. Qh8+ {[%clk 0:00:05.6]} 65... Kg5 {[%clk 0:00:06.4]}
66. Qg8+ {[%clk 0:00:06.5]} 66... Kf5 {[%clk 0:00:07]} 67. Qc8+ {[%clk
0:00:06.5]} 1/2-1/2

[Event "*** SCC Grand Prix: Titled Tuesday Blitz"]
[Site "Chess.com"]
[Date "2020.08.11"]
[Round "5"]
[White "elcandado"]
[Black "TokChess"]
[Result "1/2-1/2"]
[WhiteElo "2542"]
[BlackElo "2393"]
[TimeControl "180+1"]
[EndTime "10:56:37 PDT"]
[Termination "Game drawn by repetition"]

1. d4 {[%clk 0:03:00.9]} 1... Nf6 {[%clk 0:02:59.6]} 2. Bf4 {[%clk 0:03:00.4]}
2... d6 {[%clk 0:02:58.2]} 3. e3 {[%clk 0:02:59]} 3... g6 {[%clk 0:02:56.9]} 4.
Be2 {[%clk 0:02:58.1]} 4... Bg7 {[%clk 0:02:57.3]} 5. Nf3 {[%clk 0:02:57.9]}
5... O-O {[%clk 0:02:57.9]} 6. O-O {[%clk 0:02:57.3]} 6... c5 {[%clk 0:02:57.2]}
7. c3 {[%clk 0:02:55.5]} 7... Nc6 {[%clk 0:02:55.8]} 8. Nbd2 {[%clk 0:02:52.4]}
8... Be6 {[%clk 0:02:45.4]} 9. Ng5 {[%clk 0:02:43.3]} 9... Bd7 {[%clk
0:02:42.5]} 10. Qb3 {[%clk 0:02:42.8]} 10... Qb6 {[%clk 0:02:40.7]} 11. Nc4
{[%clk 0:02:39.7]} 11... Qxb3 {[%clk 0:02:39.8]} 12. axb3 {[%clk 0:02:40.1]}
12... Nd5 {[%clk 0:02:37]} 13. Bg3 {[%clk 0:02:36.5]} 13... h6 {[%clk
0:02:24.5]} 14. Nf3 {[%clk 0:02:35.8]} 14... Nb6 {[%clk 0:02:14.4]} 15. dxc5
{[%clk 0:02:20.1]} 15... dxc5 {[%clk 0:02:10.3]} 16. Nxb6 {[%clk 0:02:10]} 16...
axb6 {[%clk 0:02:10]} 17. Bc7 {[%clk 0:02:09.3]} 17... Na5 {[%clk 0:01:55.3]}
18. Nd2 {[%clk 0:02:07.2]} 18... Be6 {[%clk 0:01:08]} 19. Bxb6 {[%clk
0:02:01.2]} 19... Nxb3 {[%clk 0:01:06.2]} 20. Nxb3 {[%clk 0:02:00.7]} 20... Bxb3
{[%clk 0:01:06.8]} 21. Bxc5 {[%clk 0:02:00.4]} 21... Bf6 {[%clk 0:01:06.8]} 22.
Bf3 {[%clk 0:01:58.2]} 22... Rab8 {[%clk 0:01:02.6]} 23. Ba7 {[%clk 0:01:54.6]}
23... Rbd8 {[%clk 0:01:00.8]} 24. Bd4 {[%clk 0:01:44.3]} 24... e5 {[%clk
0:00:58.4]} 25. Bc5 {[%clk 0:01:43.3]} 25... Rfe8 {[%clk 0:00:56.4]} 26. Bxb7
{[%clk 0:01:41.5]} 26... Rd2 {[%clk 0:00:55.8]} 27. Ba3 {[%clk 0:01:40.7]} 27...
Red8 {[%clk 0:00:49.1]} 28. Rac1 {[%clk 0:01:23]} 28... Bc4 {[%clk 0:00:41.7]}
29. Rfe1 {[%clk 0:01:21.6]} 29... h5 {[%clk 0:00:37.6]} 30. h3 {[%clk
0:01:17.1]} 30... Bh4 {[%clk 0:00:36]} 31. g3 {[%clk 0:01:15.7]} 31... Bg5
{[%clk 0:00:36.3]} 32. h4 {[%clk 0:01:12.2]} 32... Bh6 {[%clk 0:00:34]} 33. Bf3
{[%clk 0:01:11]} 33... Bb3 {[%clk 0:00:24.8]} 34. c4 {[%clk 0:01:07.3]} 34... f5
{[%clk 0:00:24.9]} 35. Bd5+ {[%clk 0:01:02.1]} 35... Kg7 {[%clk 0:00:19.5]} 36.
Rc3 {[%clk 0:00:51.4]} 36... Bc2 {[%clk 0:00:14.7]} 37. b4 {[%clk 0:00:46]}
37... f4 {[%clk 0:00:15]} 38. exf4 {[%clk 0:00:34.7]} 38... exf4 {[%clk
0:00:14.7]} 39. b5 {[%clk 0:00:34.1]} 39... fxg3 {[%clk 0:00:13.6]} 40. Rxg3
{[%clk 0:00:32.6]} 40... R8xd5 {[%clk 0:00:08.9]} 41. cxd5 {[%clk 0:00:31.3]}
41... Rxd5 {[%clk 0:00:09.5]} 42. Re7+ {[%clk 0:00:22.6]} 42... Kf6 {[%clk
0:00:09.2]} 43. Rge3 {[%clk 0:00:16.9]} 43... Bxe3 {[%clk 0:00:07.3]} 44. Rxe3
{[%clk 0:00:15.8]} 44... Rd1+ {[%clk 0:00:07.3]} 45. Kg2 {[%clk 0:00:15.3]}
45... Rb1 {[%clk 0:00:06.9]} 46. Re2 {[%clk 0:00:13.1]} 46... Bd3 {[%clk
0:00:06.4]} 47. Rb2 {[%clk 0:00:12.5]} 47... Rxb2 {[%clk 0:00:06.3]} 48. Bxb2+
{[%clk 0:00:13.4]} 48... Ke6 {[%clk 0:00:05.6]} 49. b6 {[%clk 0:00:13.3]} 49...
Kd7 {[%clk 0:00:05.2]} 50. Kg3 {[%clk 0:00:12.9]} 50... Kc6 {[%clk 0:00:05.5]}
51. Bd4 {[%clk 0:00:13.1]} 51... Kb7 {[%clk 0:00:05.8]} 52. Kf4 {[%clk
0:00:12.9]} 52... Bf5 {[%clk 0:00:06.4]} 53. Kg5 {[%clk 0:00:12.4]} 53... Bb1
{[%clk 0:00:07]} 54. Be3 {[%clk 0:00:12.2]} 54... Bf5 {[%clk 0:00:07.5]} 55. Kf6
{[%clk 0:00:11.3]} 55... Bc2 {[%clk 0:00:08.1]} 56. Kg5 {[%clk 0:00:10.3]} 56...
Bf5 {[%clk 0:00:08.7]} 57. Kf6 {[%clk 0:00:10.2]} 57... Bc2 {[%clk 0:00:09.3]}
58. Kg5 {[%clk 0:00:10.1]} 58... Bf5 {[%clk 0:00:09.7]} 1/2-1/2

[Event "*** SCC Grand Prix: Titled Tuesday Blitz"]
[Site "Chess.com"]
[Date "2020.08.11"]
[Round "5"]
[White "MF1966Idrisov"]
[Black "Alomaterapia"]
[Result "1/2-1/2"]
[WhiteElo "2384"]
[BlackElo "2521"]
[TimeControl "180+1"]
[EndTime "10:56:38 PDT"]
[Termination "Game drawn by repetition"]

1. Nf3 {[%clk 0:03:00.9]} 1... c5 {[%clk 0:02:55.9]} 2. b3 {[%clk 0:03:00.6]}
2... d6 {[%clk 0:02:54.1]} 3. d4 {[%clk 0:02:59.7]} 3... cxd4 {[%clk 0:02:52.7]}
4. Nxd4 {[%clk 0:02:59.7]} 4... e5 {[%clk 0:02:53]} 5. Nf3 {[%clk 0:02:59]} 5...
Nf6 {[%clk 0:02:52.8]} 6. Bb2 {[%clk 0:02:59]} 6... Be7 {[%clk 0:02:51.8]} 7. g3
{[%clk 0:02:58.7]} 7... O-O {[%clk 0:02:51.6]} 8. Bg2 {[%clk 0:02:58.9]} 8...
Nc6 {[%clk 0:02:51.9]} 9. O-O {[%clk 0:02:58.3]} 9... Bf5 {[%clk 0:02:38.7]} 10.
c4 {[%clk 0:02:57]} 10... Re8 {[%clk 0:02:38.5]} 11. Nc3 {[%clk 0:02:56.2]}
11... Rc8 {[%clk 0:02:38.8]} 12. Nd5 {[%clk 0:02:43.2]} 12... Nxd5 {[%clk
0:02:38.1]} 13. Qxd5 {[%clk 0:02:42.2]} 13... Be6 {[%clk 0:02:36]} 14. Qd2
{[%clk 0:02:41.3]} 14... Bf6 {[%clk 0:02:10.4]} 15. Rfd1 {[%clk 0:02:35.3]}
15... e4 {[%clk 0:02:10.4]} 16. Nd4 {[%clk 0:02:27.9]} 16... Nxd4 {[%clk
0:01:59.2]} 17. Bxd4 {[%clk 0:02:27]} 17... e3 {[%clk 0:01:43.4]} 18. fxe3
{[%clk 0:01:57.4]} 18... Rc7 {[%clk 0:01:26.7]} 19. Bxa7 {[%clk 0:01:45.7]}
19... Bxa1 {[%clk 0:01:24.9]} 20. Rxa1 {[%clk 0:01:45.3]} 20... Qg5 {[%clk
0:01:15.5]} 21. Bd4 {[%clk 0:01:37]} 21... h5 {[%clk 0:01:13.1]} 22. Rf1 {[%clk
0:01:27]} 22... h4 {[%clk 0:01:12.3]} 23. Rf3 {[%clk 0:01:27]} 23... Bg4 {[%clk
0:01:06.8]} 24. gxh4 {[%clk 0:01:26.8]} 24... Qxh4 {[%clk 0:01:05.8]} 25. Rg3
{[%clk 0:01:26.9]} 25... f6 {[%clk 0:00:59.8]} 26. Bf3 {[%clk 0:01:19.5]} 26...
Bxf3 {[%clk 0:00:55]} 27. exf3 {[%clk 0:01:18.9]} 27... Rf7 {[%clk 0:00:45]} 28.
Qg2 {[%clk 0:01:14.8]} 28... Qh7 {[%clk 0:00:41.7]} 29. Qb2 {[%clk 0:01:10.8]}
29... Re6 {[%clk 0:00:35.3]} 30. Kg2 {[%clk 0:01:09.2]} 30... Qd3 {[%clk
0:00:31.3]} 31. a4 {[%clk 0:01:03]} 31... Kf8 {[%clk 0:00:29.6]} 32. h4 {[%clk
0:00:59.9]} 32... Rd7 {[%clk 0:00:21.9]} 33. a5 {[%clk 0:00:57.1]} 33... d5
{[%clk 0:00:21.4]} 34. c5 {[%clk 0:00:54.8]} 34... Qb5 {[%clk 0:00:18.8]} 35. b4
{[%clk 0:00:53.9]} 35... Qd3 {[%clk 0:00:18.8]} 36. b5 {[%clk 0:00:53.1]} 36...
Rde7 {[%clk 0:00:19]} 37. Kh2 {[%clk 0:00:35]} 37... Rxe3 {[%clk 0:00:18.7]} 38.
Bxe3 {[%clk 0:00:34.5]} 38... Rxe3 {[%clk 0:00:18.9]} 39. Rg2 {[%clk 0:00:34.4]}
39... Rxf3 {[%clk 0:00:19.3]} 40. Qd2 {[%clk 0:00:23.5]} 40... Qe4 {[%clk
0:00:15.4]} 41. c6 {[%clk 0:00:19.5]} 41... Qxh4+ {[%clk 0:00:15]} 42. Kg1
{[%clk 0:00:19.2]} 42... bxc6 {[%clk 0:00:15.4]} 43. bxc6 {[%clk 0:00:18.6]}
43... Qc4 {[%clk 0:00:13.5]} 44. Rf2 {[%clk 0:00:15.6]} 44... Rxf2 {[%clk
0:00:13]} 45. Qxf2 {[%clk 0:00:14.9]} 45... Qxc6 {[%clk 0:00:13.3]} 46. Qa7
{[%clk 0:00:13.2]} 46... Qc1+ {[%clk 0:00:11.3]} 47. Kg2 {[%clk 0:00:12.4]}
47... Qd2+ {[%clk 0:00:11.3]} 48. Kg1 {[%clk 0:00:12.5]} 48... Qe1+ {[%clk
0:00:11.3]} 49. Kg2 {[%clk 0:00:12.8]} 49... Qe4+ {[%clk 0:00:11.7]} 50. Kg1
{[%clk 0:00:12.9]} 50... d4 {[%clk 0:00:12.2]} 51. a6 {[%clk 0:00:12.5]} 51...
d3 {[%clk 0:00:12.2]} 52. Qb8+ {[%clk 0:00:12.4]} 52... Kf7 {[%clk 0:00:12.5]}
53. a7 {[%clk 0:00:12.5]} 53... d2 {[%clk 0:00:12.7]} 54. Qb3+ {[%clk 0:00:10]}
54... Kg6 {[%clk 0:00:12.2]} 55. Qg3+ {[%clk 0:00:08.1]} 55... Kh7 {[%clk
0:00:12.1]} 56. Qh3+ {[%clk 0:00:07.3]} 56... Kg8 {[%clk 0:00:11.9]} 57. Qc8+
{[%clk 0:00:06.4]} 57... Kh7 {[%clk 0:00:12.2]} 58. Qd7 {[%clk 0:00:06.3]} 58...
Qe3+ {[%clk 0:00:11.5]} 59. Kg2 {[%clk 0:00:05.5]} 59... d1=Q {[%clk 0:00:11.4]}
60. Qxd1 {[%clk 0:00:04.5]} 60... Qxa7 {[%clk 0:00:10.9]} 61. Qh5+ {[%clk
0:00:04.1]} 61... Kg8 {[%clk 0:00:11.5]} 62. Qe8+ {[%clk 0:00:04]} 62... Kh7
{[%clk 0:00:12.2]} 63. Qh5+ {[%clk 0:00:04]} 63... Kg8 {[%clk 0:00:12.8]} 64.
Qe8+ {[%clk 0:00:04]} 64... Kh7 {[%clk 0:00:13.5]} 65. Qh5+ {[%clk 0:00:04]}
1/2-1/2

[Event "*** SCC Grand Prix: Titled Tuesday Blitz"]
[Site "Chess.com"]
[Date "2020.08.11"]
[Round "5"]
[White "paulrusan"]
[Black "Danfii"]
[Result "1-0"]
[WhiteElo "2214"]
[BlackElo "2347"]
[TimeControl "180+1"]
[EndTime "10:56:45 PDT"]
[Termination "paulrusan won by resignation"]

1. e4 {[%clk 0:03:00.9]} 1... e5 {[%clk 0:02:59.7]} 2. Nf3 {[%clk 0:03:00.6]}
2... Nc6 {[%clk 0:02:59.9]} 3. Bc4 {[%clk 0:03:00.5]} 3... Bc5 {[%clk
0:02:59.4]} 4. b4 {[%clk 0:03:00.2]} 4... Bxb4 {[%clk 0:02:59.1]} 5. c3 {[%clk
0:03:00.3]} 5... Be7 {[%clk 0:02:59.7]} 6. d4 {[%clk 0:02:58.2]} 6... Na5 {[%clk
0:02:59.9]} 7. Be2 {[%clk 0:02:53.8]} 7... exd4 {[%clk 0:02:58.8]} 8. Qxd4
{[%clk 0:02:53.4]} 8... d6 {[%clk 0:02:58.2]} 9. Qxg7 {[%clk 0:02:48.9]} 9...
Bf6 {[%clk 0:02:58.2]} 10. Qg3 {[%clk 0:02:49]} 10... Be6 {[%clk 0:02:58.1]} 11.
O-O {[%clk 0:02:39.2]} 11... Qd7 {[%clk 0:02:54.9]} 12. Rd1 {[%clk 0:02:38]}
12... Nc6 {[%clk 0:02:48.6]} 13. Bf4 {[%clk 0:02:33.4]} 13... Nge7 {[%clk
0:02:42]} 14. e5 {[%clk 0:02:33]} 14... Rg8 {[%clk 0:02:16.5]} 15. Ng5 {[%clk
0:01:58.8]} 15... Nxe5 {[%clk 0:02:09.1]} 16. Ne4 {[%clk 0:01:47.3]} 16... Bh8
{[%clk 0:02:00.9]} 17. Qh4 {[%clk 0:01:43.4]} 17... N7g6 {[%clk 0:01:51.5]} 18.
Nf6+ {[%clk 0:01:40]} 18... Bxf6 {[%clk 0:01:51.1]} 19. Qxf6 {[%clk 0:01:40.2]}
19... Nxf4 {[%clk 0:01:50.2]} 20. Qxf4 {[%clk 0:01:40.4]} 20... O-O-O {[%clk
0:01:49.7]} 21. Nd2 {[%clk 0:01:39.1]} 21... Bd5 {[%clk 0:01:34.7]} 22. Ne4
{[%clk 0:01:27.8]} 22... Qc6 {[%clk 0:01:28.5]} 23. Rd4 {[%clk 0:01:08.1]} 23...
Bxe4 {[%clk 0:01:21.5]} 24. Rxe4 {[%clk 0:01:08.4]} 24... Kb8 {[%clk 0:01:13.8]}
25. c4 {[%clk 0:01:05.7]} 25... f5 {[%clk 0:01:00.9]} 26. Qxf5 {[%clk 0:01:01]}
26... Rdf8 {[%clk 0:01:00.4]} 27. Qxh7 {[%clk 0:01:00.3]} 27... Rh8 {[%clk
0:01:00.6]} 28. Rf4 {[%clk 0:00:54.6]} 28... Re8 {[%clk 0:00:41.4]} 29. Qe4
{[%clk 0:00:51.7]} 29... Qc5 {[%clk 0:00:31.6]} 30. Rb1 {[%clk 0:00:46.2]} 30...
c6 {[%clk 0:00:30.3]} 31. Qd4 {[%clk 0:00:42]} 31... Qxd4 {[%clk 0:00:21.6]} 32.
Rxd4 {[%clk 0:00:41.6]} 32... Kc7 {[%clk 0:00:20]} 33. f4 {[%clk 0:00:36.5]}
33... Ng6 {[%clk 0:00:18.5]} 34. Bf3 {[%clk 0:00:29.4]} 34... Nh4 {[%clk
0:00:17.4]} 35. Rf1 {[%clk 0:00:20.5]} 35... Rhg8 {[%clk 0:00:17]} 36. g3 {[%clk
0:00:19.6]} 36... Nf5 {[%clk 0:00:14.9]} 37. Rd3 {[%clk 0:00:18.6]} 37... Rg7
{[%clk 0:00:11.3]} 38. Rc1 {[%clk 0:00:18.2]} 38... Reg8 {[%clk 0:00:11]} 39.
Kf2 {[%clk 0:00:17.4]} 39... Re7 {[%clk 0:00:08.9]} 40. c5 {[%clk 0:00:16.8]}
40... d5 {[%clk 0:00:08.3]} 41. a4 {[%clk 0:00:16.8]} 41... Rh7 {[%clk
0:00:08.2]} 42. Rh1 {[%clk 0:00:13.9]} 42... Re8 {[%clk 0:00:07]} 43. h4 {[%clk
0:00:10.4]} 43... Rg8 {[%clk 0:00:05.5]} 44. Rh3 {[%clk 0:00:10.2]} 44... Rhg7
{[%clk 0:00:05.2]} 45. Be2 {[%clk 0:00:08.8]} 45... d4 {[%clk 0:00:03.8]} 46.
Bf1 {[%clk 0:00:07.6]} 46... b6 {[%clk 0:00:02.7]} 47. cxb6+ {[%clk 0:00:07.1]}
47... axb6 {[%clk 0:00:03.6]} 48. Bg2 {[%clk 0:00:07.6]} 48... c5 {[%clk
0:00:04.2]} 49. Be4 {[%clk 0:00:07.6]} 49... Ne3 {[%clk 0:00:04.3]} 50. h5
{[%clk 0:00:05.7]} 50... Ng4+ {[%clk 0:00:04.4]} 51. Kg2 {[%clk 0:00:05.3]}
51... Re7 {[%clk 0:00:03.3]} 52. Bf3 {[%clk 0:00:04.7]} 52... Ne3+ {[%clk
0:00:03.4]} 53. Kf2 {[%clk 0:00:05.1]} 53... Nf5 {[%clk 0:00:01.7]} 54. g4
{[%clk 0:00:04.8]} 54... Ne3 {[%clk 0:00:02.6]} 55. g5 {[%clk 0:00:04.5]} 55...
Rf7 {[%clk 0:00:03.3]} 56. h6 {[%clk 0:00:04.5]} 56... Rxf4 {[%clk 0:00:03.4]}
57. h7 {[%clk 0:00:04.9]} 57... Rh8 {[%clk 0:00:03.7]} 58. g6 {[%clk 0:00:05.3]}
58... Ng4+ {[%clk 0:00:01.6]} 59. Kg3 {[%clk 0:00:04.4]} 59... Ne5 {[%clk
0:00:01.9]} 60. Kxf4 {[%clk 0:00:04.4]} 60... Nxg6+ {[%clk 0:00:02.8]} 61. Kg5
{[%clk 0:00:04.4]} 61... Ne7 {[%clk 0:00:02.8]} 62. Kf6 {[%clk 0:00:03.8]} 62...
Nd5+ {[%clk 0:00:03.7]} 63. Bxd5 {[%clk 0:00:03.3]} 1-0

[Event "*** SCC Grand Prix: Titled Tuesday Blitz"]
[Site "Chess.com"]
[Date "2020.08.11"]
[Round "5"]
[White "viktorskliarov"]
[Black "VitaliyBernadskiy"]
[Result "0-1"]
[WhiteElo "2578"]
[BlackElo "2748"]
[TimeControl "180+1"]
[EndTime "10:56:48 PDT"]
[Termination "VitaliyBernadskiy won on time"]

1. e4 {[%clk 0:03:00.9]} 1... c6 {[%clk 0:02:59.7]} 2. d4 {[%clk 0:03:00.4]}
2... d5 {[%clk 0:03:00.4]} 3. e5 {[%clk 0:03:00.5]} 3... Bf5 {[%clk 0:03:00.3]}
4. Nf3 {[%clk 0:03:00.3]} 4... e6 {[%clk 0:03:00.4]} 5. Be2 {[%clk 0:03:00.8]}
5... Nd7 {[%clk 0:02:58.4]} 6. O-O {[%clk 0:03:00.5]} 6... Ne7 {[%clk
0:02:57.7]} 7. a4 {[%clk 0:03:00.6]} 7... Bg6 {[%clk 0:02:55.7]} 8. a5 {[%clk
0:03:00.4]} 8... Nf5 {[%clk 0:02:55.7]} 9. c4 {[%clk 0:02:55.6]} 9... Be7 {[%clk
0:02:54.6]} 10. Nc3 {[%clk 0:02:55.1]} 10... O-O {[%clk 0:02:52.1]} 11. Bf4
{[%clk 0:02:44]} 11... dxc4 {[%clk 0:02:49.3]} 12. Bxc4 {[%clk 0:02:43]} 12...
b5 {[%clk 0:02:49.7]} 13. Bd3 {[%clk 0:02:21.6]} 13... a6 {[%clk 0:02:49.4]} 14.
g4 {[%clk 0:01:41.8]} 14... Nh4 {[%clk 0:02:43.1]} 15. Nxh4 {[%clk 0:01:41.3]}
15... Bxh4 {[%clk 0:02:44]} 16. b4 {[%clk 0:01:27]} 16... Qe7 {[%clk 0:02:18.9]}
17. Rb1 {[%clk 0:01:25.2]} 17... Rad8 {[%clk 0:02:19.1]} 18. Ne4 {[%clk
0:01:13.5]} 18... f6 {[%clk 0:02:07.5]} 19. Nd6 {[%clk 0:00:53.3]} 19... Bxd3
{[%clk 0:01:21.4]} 20. Qxd3 {[%clk 0:00:52.4]} 20... fxe5 {[%clk 0:01:18.6]} 21.
Bxe5 {[%clk 0:00:52.4]} 21... Nf6 {[%clk 0:01:04.2]} 22. Qh3 {[%clk 0:00:31.5]}
22... Nd5 {[%clk 0:00:57]} 23. Rb3 {[%clk 0:00:28.9]} 23... Nf4 {[%clk
0:00:52.5]} 24. Bxf4 {[%clk 0:00:17.5]} 24... Rxf4 {[%clk 0:00:53.4]} 25. Nb7
{[%clk 0:00:17.5]} 25... Rdxd4 {[%clk 0:00:52.2]} 26. Kh1 {[%clk 0:00:15.8]}
26... Qxb7 {[%clk 0:00:35.2]} 27. Qxh4 {[%clk 0:00:15.1]} 27... c5+ {[%clk
0:00:35.5]} 28. f3 {[%clk 0:00:13.9]} 28... Rxg4 {[%clk 0:00:28.9]} 29. Qh5
{[%clk 0:00:14.2]} 29... Rg6 {[%clk 0:00:13.8]} 30. Qxc5 {[%clk 0:00:13.3]}
30... Qd7 {[%clk 0:00:12.9]} 31. Re3 {[%clk 0:00:11.8]} 31... h6 {[%clk
0:00:10.9]} 32. Rfe1 {[%clk 0:00:11.3]} 32... Rd2 {[%clk 0:00:09.8]} 33. Qh5
{[%clk 0:00:09]} 33... Rgg2 {[%clk 0:00:09.5]} 34. Rxe6 {[%clk 0:00:08.9]} 34...
Rxh2+ {[%clk 0:00:04.8]} 35. Qxh2 {[%clk 0:00:08.9]} 35... Rxh2+ {[%clk
0:00:05.7]} 36. Kxh2 {[%clk 0:00:09.8]} 36... Qd2+ {[%clk 0:00:06.1]} 37. R1e2
{[%clk 0:00:08.4]} 37... Qxb4 {[%clk 0:00:07]} 38. Rxa6 {[%clk 0:00:08.2]} 38...
Qc4 {[%clk 0:00:06.2]} 39. Ra8+ {[%clk 0:00:06.6]} 39... Kh7 {[%clk 0:00:06.3]}
40. Rae8 {[%clk 0:00:07]} 40... b4 {[%clk 0:00:06.1]} 41. R2e4 {[%clk
0:00:06.6]} 41... Qc7+ {[%clk 0:00:05.8]} 42. Kh3 {[%clk 0:00:06]} 42... Qxa5
{[%clk 0:00:06]} 43. Rb8 {[%clk 0:00:05.5]} 43... Qf5+ {[%clk 0:00:05]} 44. Kg2
{[%clk 0:00:05.4]} 44... Qg5+ {[%clk 0:00:05.2]} 45. Kf2 {[%clk 0:00:03.4]}
45... Qd2+ {[%clk 0:00:05.3]} 46. Kf1 {[%clk 0:00:02.8]} 46... Qd1+ {[%clk
0:00:05.1]} 47. Kf2 {[%clk 0:00:02.9]} 47... b3 {[%clk 0:00:06]} 48. Re2 {[%clk
0:00:01.8]} 48... Qd4+ {[%clk 0:00:05.9]} 49. Kf1 {[%clk 0:00:02]} 49... Qc4
{[%clk 0:00:06.1]} 50. Kf2 {[%clk 0:00:01.7]} 50... h5 {[%clk 0:00:05.4]} 51.
Re3 {[%clk 0:00:01.6]} 51... Qc2+ {[%clk 0:00:05.1]} 52. Re2 {[%clk 0:00:02.3]}
52... Qc5+ {[%clk 0:00:05.5]} 53. Re3 {[%clk 0:00:02.4]} 53... Qc2+ {[%clk
0:00:04.9]} 54. Re2 {[%clk 0:00:02.4]} 54... Qc4 {[%clk 0:00:05.5]} 55. Re3
{[%clk 0:00:02]} 55... Qh4+ {[%clk 0:00:05.8]} 56. Ke2 {[%clk 0:00:01.9]} 56...
Qh2+ {[%clk 0:00:06.1]} 57. Kd3 {[%clk 0:00:02.5]} 57... Qxb8 {[%clk 0:00:07]}
0-1